bitfinex-derivatives/quotes_SOLF0:USTF0_20240924
["timestamp","ask_amount","ask_price","bid_price","bid_amount"]
[1727156777326,3.418,146.29,146.16,1.4058]
[1727156777530,3.418,146.29,146.25,9.46]
[1727156777937,3.418,146.29,146.26,9.46]
[1727156778133,10.23817899,146.38,146.26,9.46]
[1727156778134,3.4178,146.3,146.26,9.46]
[1727156778529,3.4178,146.3,146.26,12.8785]
[1727156779540,12.8778,146.3,146.26,12.8785]
[1727156780932,3.4182,146.28,146.25,9.46]
[1727156781238,10.23817899,146.38,146.24,12.8791]
[1727156781239,9.46,146.29,146.24,12.8791]
[1727156782045,3.4184,146.28,146.24,12.8791]
[1727156782539,3.4184,146.28,146.25,9.46]
[1727156782742,9.46,146.3,146.25,9.46]
[1727156783539,3.4181,146.29,146.25,12.8789]
[1727156784347,3.4181,146.29,146.26,9.46]
[1727156785547,3.4181,146.29,146.26,12.292]
[1727156787243,3.4185,146.27,146.26,2.832]
[1727156787452,9.46,146.29,146.23,9.46]
[1727156787838,3.4188,146.26,146.23,9.46]
[1727156788648,9.46,146.25,146.19,1.4156]
[1727156788837,9.46,146.25,146.19,10.8756]
[1727156789552,3.4195,146.23,146.19,4.8357]
[1727156789850,9.46,146.25,146.2,9.46]
[1727156790249,3.4193,146.24,146.2,12.88]
[1727156790446,3.39637243,146.3,146.23,9.46]
[1727156790646,9.46,146.28,146.23,9.46]
[1727156790840,3.4185,146.27,146.24,9.46]
[1727156791640,3.42443764,146.3,146.23,9.46]
[1727156791641,9.46,146.28,146.23,9.46]
[1727156792044,12.96038421,146.28,146.19,1.4156]
[1727156792243,9.46,146.25,146.2,9.46]
[1727156792447,14.78,146.26,146.19,1.4156]
[1727156792644,6.8339,146.34,146.19,16.1956]
[1727156792850,14.78,146.29,146.19,16.1956]
[1727156793051,3.38475384,146.28,146.19,16.1956]
[1727156793362,3.4188,146.26,146.22,3.4195]
[1727156793852,3.4189,146.25,146.22,3.4195]
[1727156794356,14.78,146.27,146.19,1.4156]
[1727156795957,3.4194,146.23,146.2,3.42]
[1727156801758,3.4192,146.24,146.2,18.2]
[1727156806569,3.4194,146.23,146.2,18.2]
[1727156806771,3.4194,146.23,146.2,14.78]
[1727156808268,3.41761324,146.29,146.19,4.8358]
[1727156808269,3.4199,146.21,146.19,1.4156]
[1727156809273,3.4197,146.22,146.19,1.4156]
[1727156809571,14.78,146.28,146.19,1.4156]
[1727156809975,3.4195,146.23,146.2,3.4201]
[1727156810976,3.4195,146.23,146.19,1.4156]
[1727156810977,14.78,146.28,146.19,1.4156]
[1727156811176,14.78,146.28,146.19,16.1956]
[1727156811575,3.4194,146.23,146.19,16.1956]
[1727156812684,3.4194,146.23,146.2,3.4199]
[1727156814369,9.46,146.25,146.2,9.46]
[1727156815372,3.4197,146.22,146.2,9.46]
[1727156816682,9.46,146.23,146.19,1.4156]
[1727156817176,3.42,146.21,146.19,1.4156]
[1727156818577,3.4197,146.22,146.2,9.46]
[1727156818787,9.46,146.26,146.21,9.46]
[1727156819083,3.4195,146.23,146.21,9.46]
[1727156819284,83.57650713,146.3,146.22,9.46]
[1727156819475,9.46,146.29,146.23,9.46]
[1727156819676,83.57650713,146.3,146.25,9.46]
[1727156819881,89.62550323,146.3,146.26,9.46]
[1727156820589,3.4184,146.28,146.26,9.46]
[1727156823784,80.16550323,146.3,146.27,9.46]
[1727156823984,9.46,146.34,146.28,9.46]
[1727156824595,3.4177,146.31,146.28,12.8781]
[1727156825383,3.4177,146.31,146.29,3.418]
[1727156825988,3.4177,146.31,146.28,12.8781]
[1727156827588,9.46,146.34,146.29,3.418]
[1727156827589,3.4173,146.32,146.29,3.418]
[1727156827780,3.4173,146.32,146.28,9.46]
[1727156827981,9.46,146.34,146.28,9.46]
[1727156828185,3.40597899,146.38,146.28,9.46]
[1727156828186,3.4176,146.31,146.28,9.46]
[1727156828983,3.4178,146.3,146.28,9.46]
[1727156833184,3.4176,146.31,146.28,9.46]
[1727156833489,9.46,146.32,146.28,9.46]
[1727156834489,9.46,146.32,146.29,9.46]
[1727156834895,3.4178,146.3,146.29,9.46]
[1727156835391,12.8798468,146.33,146.29,9.46]
[1727156835592,3.4177,146.31,146.29,9.46]
[1727156836792,3.4178,146.3,146.27,4.7194]
[1727156836997,3.4178,146.3,146.28,9.46]
[1727156839498,3.4178,146.3,146.29,9.46]
[1727156840092,3.4176,146.31,146.29,9.46]
[1727156840998,3.4178,146.3,146.29,9.46]
[1727156842697,3.4176,146.31,146.29,9.46]
[1727156843200,3.4176,146.31,146.3,9.46]
[1727156845896,9.46,146.32,146.27,1.3011]
[1727156846096,9.46,146.32,146.28,9.46]
[1727156846296,3.4178,146.3,146.28,9.46]
[1727156846603,3.4178,146.3,146.29,9.46]
[1727156849607,3.4177,146.31,146.29,9.46]
[1727156849805,3.4177,146.31,146.3,9.46]
[1727156850505,3.4174,146.32,146.3,9.46]
[1727156850900,3.4174,146.32,146.31,9.46]
[1727156854098,6.8312,146.4,146.31,9.46]
[1727156854299,3.43592008,146.4,146.34,9.46]
[1727156854507,9.46,146.39,146.34,9.46]
[1727156854809,12.92222652,146.39,146.34,9.46]
[1727156855901,3.4166,146.35,146.34,9.46]
[1727156857409,3.4169,146.34,146.33,9.46]
[1727156857903,3.4169,146.34,146.31,9.46]
[1727156858409,3.4169,146.34,146.31,12.8775]
[1727156858600,3.4169,146.34,146.33,9.46]
[1727156860606,3.4169,146.34,146.32,9.46]
[1727156861815,9.46,146.35,146.27,1.3011]
[1727156862111,9.46,146.34,146.27,1.3011]
[1727156862306,3.4177,146.31,146.29,9.46]
[1727156862607,3.4499176,146.35,146.3,9.46]
[1727156862909,9.46,146.34,146.3,9.46]
[1727156863901,3.4175,146.32,146.3,9.46]
[1727156866815,3.4175,146.32,146.3,12.8777]
[1727156867012,3.4175,146.32,146.3,9.46]
[1727156870211,9.46,146.33,146.28,9.46]
[1727156870713,9.46,146.33,146.27,1.3011]
[1727156870714,9.46,146.31,146.27,10.7611]
[1727156871516,3.4182,146.29,146.27,10.7611]
[1727156878524,3.4182,146.29,146.28,9.46]
[1727156879818,6.8322,146.38,146.28,9.46]
[1727156880020,6.8322,146.38,146.31,9.46]
[1727156880021,9.46,146.36,146.31,9.46]
[1727156880424,3.4175,146.32,146.31,9.46]
[1727156883519,3.4172,146.33,146.31,9.46]
[1727156883721,3.4172,146.33,146.32,9.46]
[1727156886124,9.46,146.34,146.27,1.3011]
[1727156886327,9.46,146.33,146.29,9.46]
[1727156886728,3.4177,146.31,146.29,9.46]
[1727156887131,3.4177,146.31,146.3,9.46]
[1727156891937,3.4177,146.31,146.29,9.46]
[1727156894240,9.46,146.32,146.27,10.7611]
[1727156895337,9.46,146.31,146.27,1.3011]
[1727156895846,3.4178,146.3,146.27,1.3011]
[1727156896057,9.46,146.31,146.27,1.3011]
[1727156897133,3.418,146.29,146.26,12.8785]
[1727156897346,9.46,146.27,146.21,2.6176]
[1727156897545,9.46,146.27,146.22,9.46]
[1727156898541,3.44173163,146.29,146.22,3.4196]
[1727156898743,9.46,146.27,146.22,12.8796]
[1727156899441,9.46,146.27,146.22,9.46]
[1727156899640,9.46,146.26,146.21,12.0776]
[1727156899840,14.1386102,146.31,146.21,2.6176]
[1727156900146,9.46,146.25,146.21,2.6176]
[1727156900843,3.4193,146.24,146.21,2.6176]
[1727156901645,3.4193,146.24,146.21,15.4974]
[1727156901843,3.419,146.25,146.21,15.4974]
[1727156902444,3.419,146.25,146.23,9.46]
[1727156903848,9.46,146.25,146.21,2.6176]
[1727156904047,9.46,146.24,146.21,1.2978]
[1727156905746,3.4196,146.22,146.21,1.2978]
[1727156906451,3.4196,146.22,146.19,3.4202]
[1727156906655,3.4196,146.22,146.19,12.8802]
[1727156910953,3.4196,146.22,146.2,9.46]
[1727156913350,3.4195,146.23,146.2,9.46]
[1727156914256,3.4195,146.23,146.21,9.46]
[1727156914656,3.4195,146.23,146.21,12.8799]
[1727156917559,3.4195,146.23,146.21,3.4199]
[1727156927757,9.46,146.22,146.17,71.46263894]
[1727156927953,9.46,146.22,146.18,9.46]
[1727156928156,9.46,146.22,146.18,3.4205]
[1727156928364,9.46,146.21,146.18,3.4205]
[1727156928666,12.8804,146.19,146.17,2.7047]
[1727156928863,12.8804,146.19,146.17,1.3813]
[1727156935068,3.4204,146.19,146.17,1.3813]
[1727156935563,12.8802,146.2,146.17,1.3813]
[1727156938366,3.4202,146.2,146.17,4.8021]
[1727156940771,12.8799,146.21,146.17,1.3813]
[1727156940967,1.2703,146.25,146.19,9.46]
[1727156941270,9.46,146.24,146.19,9.46]
[1727156941467,3.4195,146.23,146.2,3.4201]
[1727156941769,9.46,146.24,146.19,9.46]
[1727156942170,9.46,146.22,146.18,9.46]
[1727156942968,3.42,146.21,146.19,3.4203]
[1727156945376,9.46,146.2,146.17,1.3813]
[1727156945677,9.46,146.19,146.15,9.46]
[1727156946380,9.46,146.2,146.15,9.46]
[1727156946782,9.46,146.2,146.16,9.46]
[1727156946975,12.88,146.21,146.17,3.4206]
[1727156947575,3.42,146.21,146.18,3.4205]
[1727156949071,3.4197,146.22,146.19,3.4202]
[1727156949478,9.46,146.22,146.17,9.46]
[1727156949681,9.46,146.22,146.2,3.4199]
[1727156950478,12.8797,146.22,146.19,3.4202]
[1727156954588,3.4194,146.23,146.19,9.46]
[1727156955579,3.4194,146.23,146.2,3.42]
[1727156956581,9.46,146.24,146.19,9.46]
[1727156957387,3.4194,146.23,146.2,3.42]
[1727156959278,12.8792,146.24,146.21,3.4198]
[1727156959485,12.8792,146.24,146.19,9.46]
[1727156959782,12.8792,146.24,146.19,10.8166]
[1727156959984,12.879,146.25,146.22,3.4195]
[1727156960390,3.4192,146.24,146.22,3.4195]
[1727156968200,3.4192,146.24,146.21,12.8797]
[1727156969508,81.50860417,146.3,146.22,9.46]
[1727156969805,93.07267313,146.3,146.25,9.46]
[1727156970002,3.4181,146.29,146.25,9.46]
[1727156970199,3.4181,146.29,146.26,9.46]
[1727156970607,3.4181,146.29,146.26,12.8785]
[1727156971604,3.4183,146.28,146.26,3.4185]
[1727156971806,3.4183,146.28,146.25,12.8788]
[1727156973502,3.4183,146.28,146.19,2.6953]
[1727156973503,12.9463267,146.29,146.19,2.6953]
[1727156973701,9.46,146.26,146.21,9.46]
[1727156974810,12.8788,146.26,146.23,3.4193]
[1727156975604,3.4189,146.25,146.22,3.4195]
[1727156976910,3.4188,146.26,146.19,2.6953]
[1727156977206,9.46,146.28,146.23,9.46]
[1727156977512,3.4186,146.27,146.24,3.4191]
[1727156978701,12.81145351,146.29,146.24,9.46]
[1727156978906,89.62360417,146.3,146.25,9.46]
[1727156979713,3.4181,146.29,146.26,3.4186]
[1727156987115,3.4181,146.29,146.26,12.8786]
[1727156988716,83.58150417,146.3,146.27,3.4184]
[1727156989216,3.4179,146.3,146.28,3.4182]
[1727156989612,3.4179,146.3,146.28,12.8782]
[1727156989920,3.4174,146.32,146.29,12.878]
[1727156990616,3.4175,146.31,146.29,12.878]
[1727156991816,3.417,146.34,146.32,3.4173]
[1727156992020,9.46,146.34,146.29,9.46]
[1727156992411,3.4173,146.32,146.29,12.8779]
[1727156995015,3.4173,146.32,146.29,9.46]
[1727157001624,9.46,146.36,146.31,9.46]
[1727157001819,9.46,146.37,146.31,9.46]
[1727157002127,3.4169,146.34,146.31,12.8775]
[1727157003426,3.40057251,146.36,146.31,9.46]
[1727157003615,3.40057251,146.36,146.32,9.46]
[1727157003821,2.5986,146.41,146.35,9.46]
[1727157004125,3.4161,146.38,146.35,9.46]
[1727157004321,10.7894,146.41,146.36,9.46]
[1727157004530,80.15455678,146.42,146.37,12.8761]
[1727157004727,89.61455678,146.42,146.37,9.46]
[1727157005324,89.61455678,146.42,146.37,12.876]
[1727157005525,80.15455678,146.42,146.39,9.46]
[1727157005721,9.46,146.44,146.39,12.8756]
[1727157006621,82.6874166,146.47,146.33,4.0518]
[1727157006622,9.46,146.43,146.33,4.0518]
[1727157006825,9.46,146.4,146.36,9.46]
[1727157007430,3.4158,146.39,146.36,9.46]
[1727157008930,3.4158,146.39,146.36,12.8763]
[1727157010218,3.4155,146.4,146.37,9.46]
[1727157011930,3.4155,146.4,146.37,12.8761]
[1727157013130,3.4155,146.4,146.37,3.4161]
[1727157013828,12.8755,146.4,146.37,3.4161]
[1727157014624,9.46,146.39,146.37,3.4161]
[1727157015523,3.4155,146.4,146.37,3.4161]
[1727157015831,9.46,146.39,146.37,3.4161]
[1727157016927,12.8757,146.39,146.36,3.4163]
[1727157017525,9.46,146.38,146.36,3.4163]
[1727157021134,80.0755406,146.46,146.33,13.5118]
[1727157021135,9.46,146.37,146.33,4.0518]
[1727157021734,12.8762,146.37,146.34,3.4167]
[1727157025628,12.8762,146.37,146.33,13.5118]
[1727157025629,9.46,146.37,146.35,3.4165]
[1727157025835,12.876,146.38,146.35,3.4165]
[1727157026036,9.46,146.37,146.35,3.4165]
[1727157026232,9.46,146.37,146.33,13.5118]
[1727157026837,9.46,146.37,146.34,3.4167]
[1727157031250,9.46,146.35,146.33,1.2992]
[1727157032141,9.46,146.35,146.33,4.716]
[1727157032535,3.416,146.38,146.33,10.7592]
[1727157032742,9.46,146.37,146.33,10.7592]
[1727157034645,9.46,146.37,146.35,3.4165]
[1727157037141,9.46,146.36,146.34,3.4167]
[1727157040943,3.416,146.38,146.35,3.4166]
[1727157041141,9.46,146.37,146.35,3.4166]
[1727157042541,3.416,146.38,146.35,3.4166]
[1727157042743,9.46,146.37,146.35,3.4166]
[1727157044238,9.46,146.37,146.34,3.4167]
[1727157044647,12.8762,146.37,146.34,3.4167]
[1727157044849,9.46,146.36,146.34,3.4167]
[1727157045049,9.46,146.36,146.33,4.7161]
[1727157045244,9.46,146.35,146.33,1.2992]
[1727157045445,3.35064935,146.4,146.32,3.4172]
[1727157045446,9.46,146.34,146.32,3.4172]
[1727157048451,9.46,146.34,146.31,3.4174]
[1727157048748,9.46,146.37,146.32,9.46]
[1727157049546,12.8763,146.37,146.32,9.46]
[1727157050751,12.8763,146.37,146.33,3.4169]
[1727157052250,9.46,146.35,146.33,3.4169]
[1727157052445,9.46,146.34,146.32,3.4171]
[1727157055651,3.4167,146.35,146.32,3.4171]
[1727157055854,9.46,146.33,146.31,3.4174]
[1727157057053,9.46,146.35,146.31,3.4174]
[1727157057249,9.46,146.35,146.3,3.4177]
[1727157057447,1.3926,146.39,146.3,3.4177]
[1727157057448,12.8772,146.33,146.3,3.4177]
[1727157057949,9.46,146.34,146.31,3.4175]
[1727157058153,3.4171,146.33,146.29,10.8847]
[1727157058663,3.4171,146.33,146.3,3.4176]
[1727157059558,3.4173,146.32,146.29,4.8427]
[1727157059759,12.8773,146.32,146.29,1.4247]
[1727157060253,12.8773,146.32,146.29,4.8427]
[1727157061361,12.8771,146.33,146.3,3.4178]
[1727157061862,9.46,146.33,146.3,3.4178]
[1727157064252,3.4167,146.35,146.3,9.46]
[1727157064663,9.46,146.37,146.31,9.46]
[1727157065062,3.4165,146.36,146.31,9.46]
[1727157066770,3.4165,146.36,146.32,3.4172]
[1727157067359,3.4167,146.35,146.32,3.4172]
[1727157067966,3.4165,146.36,146.33,3.417]
[1727157068571,1.2691,146.45,146.34,9.46]
[1727157068772,9.46,146.39,146.34,9.46]
[1727157069569,9.46,146.39,146.34,10.8847]
[1727157070174,9.46,146.39,146.36,3.4163]
[1727157070371,3.4155,146.4,146.36,3.4163]
[1727157070566,12.8755,146.4,146.36,3.4163]
[1727157071278,3.4155,146.4,146.37,3.4161]
[1727157071471,9.46,146.43,146.38,9.46]
[1727157072167,9.46,146.43,146.35,11.13966493]
[1727157072470,9.46,146.42,146.37,9.46]
[1727157072673,12.875,146.42,146.38,3.4159]
[1727157076083,9.46,146.4,146.34,1.4247]
[1727157076284,9.46,146.4,146.34,10.8847]
[1727157076482,9.46,146.4,146.37,3.4161]
[1727157076681,9.46,146.39,146.34,1.4247]
[1727157076882,9.46,146.39,146.34,10.8847]
[1727157078878,9.46,146.39,146.37,3.4161]
[1727157080885,9.46,146.39,146.35,3.4165]
[1727157081084,9.46,146.39,146.34,1.4247]
[1727157081085,9.46,146.39,146.34,10.8847]
[1727157082184,9.46,146.39,146.36,3.4162]
[1727157082984,9.46,146.37,146.34,1.4247]
[1727157083190,1.2674,146.47,146.34,1.4247]
[1727157083191,9.46,146.36,146.34,1.4247]
[1727157083383,9.46,146.36,146.34,4.8414]
[1727157083585,9.46,146.37,146.34,4.8414]
[1727157084088,9.46,146.37,146.34,1.4247]
[1727157084689,9.46,146.37,146.34,4.8414]
[1727157085086,1.3854,146.43,146.34,1.4247]
[1727157085387,9.46,146.37,146.35,3.4165]
[1727157092090,9.46,146.37,146.34,4.8415]
[1727157093192,3.4159,146.38,146.34,4.8415]
[1727157093394,9.46,146.37,146.34,4.8415]
[1727157093698,9.46,146.35,146.3,4.64660931]
[1727157093890,9.46,146.35,146.29,78.17063607]
[1727157094290,12.8767,146.35,146.31,3.4174]
[1727157094793,12.8767,146.35,146.32,3.4172]
[1727157095387,9.46,146.35,146.32,3.4172]
[1727157095591,1.2676,146.42,146.33,3.417]
[1727157095796,9.46,146.36,146.33,3.417]
[1727157099402,3.416,146.38,146.32,9.46]
[1727157099592,3.416,146.38,146.33,9.46]
[1727157099593,9.46,146.38,146.33,9.46]
[1727157099797,9.46,146.38,146.34,9.46]
[1727157099995,9.46,146.38,146.35,3.4165]
[1727157101597,3.4158,146.39,146.35,3.4165]
[1727157101798,9.46,146.38,146.35,3.4165]
[1727157106805,12.8759,146.38,146.35,3.4165]
[1727157107312,9.46,146.36,146.32,1.3869]
[1727157107600,9.46,146.34,146.31,1.299]
[1727157107807,9.46,146.34,146.32,3.4171]
[1727157109298,1.2676,146.42,146.31,10.759]
[1727157109299,3.4159,146.38,146.31,10.759]
[1727157109504,9.46,146.37,146.32,9.46]
[1727157109810,9.46,146.37,146.34,3.4167]
[1727157110711,12.8761,146.37,146.34,3.4167]
[1727157111106,9.46,146.36,146.33,3.417]
[1727157111310,9.46,146.35,146.31,1.299]
[1727157112104,9.46,146.35,146.29,68.71063607]
[1727157112105,9.46,146.34,146.29,68.71063607]
[1727157112305,1.2676,146.42,146.29,68.71063607]
[1727157112306,9.46,146.32,146.29,68.71063607]
[1727157113205,9.46,146.32,146.31,3.4175]
[1727157115109,9.46,146.32,146.3,3.4176]
[1727157115311,9.46,146.33,146.29,68.71063607]
[1727157116316,9.46,146.33,146.29,78.17063607]
[1727157116615,9.46,146.34,146.31,3.4175]
[1727157118116,3.4167,146.35,146.31,3.4175]
[1727157118312,9.46,146.34,146.31,3.4175]
[1727157119116,9.46,146.34,146.32,3.4172]
[1727157122507,9.46,146.36,146.31,9.46]
[1727157122708,12.8762,146.37,146.32,9.46]
[1727157123114,9.46,146.37,146.34,3.4167]
[1727157123310,9.46,146.37,146.32,9.46]
[1727157124109,9.46,146.37,146.34,3.4167]
[1727157124325,9.46,146.37,146.32,9.46]
[1727157124516,1.2676,146.42,146.3,9.46]
[1727157124517,9.46,146.35,146.3,9.46]
[1727157124820,9.46,146.34,146.32,3.4171]
[1727157125621,9.46,146.37,146.31,9.46]
[1727157126415,9.46,146.37,146.34,3.4167]
[1727157126612,3.416,146.38,146.34,3.4167]
[1727157126817,9.46,146.37,146.34,3.4167]
[1727157130518,12.8762,146.37,146.34,3.4167]
[1727157132124,9.46,146.35,146.29,68.71063607]
[1727157132324,9.46,146.35,146.3,16.00125562]
[1727157132526,9.46,146.35,146.3,9.46]
[1727157132722,12.8766,146.35,146.31,3.4174]
[1727157133925,12.8766,146.35,146.32,3.4173]
[1727157134520,9.46,146.35,146.32,3.4173]
[1727157135429,9.46,146.35,146.31,9.46]
[1727157135624,12.8762,146.37,146.32,9.46]
[1727157136821,12.8762,146.37,146.34,3.4168]
[1727157139137,9.46,146.37,146.34,3.4168]
[1727157139528,12.8762,146.37,146.33,3.4169]
[1727157141023,3.41194968,146.4,146.33,3.4169]
[1727157141024,9.46,146.35,146.33,3.4169]
[1727157144232,9.46,146.36,146.33,3.4169]
[1727157144736,9.46,146.36,146.34,3.4168]
[1727157144941,12.876,146.38,146.34,3.4168]
[1727157145841,3.4161,146.37,146.34,3.4168]
[1727157146642,12.8761,146.37,146.34,3.4168]
[1727157148235,12.8761,146.37,146.32,1.3673]
[1727157149037,12.8761,146.37,146.33,3.417]
[1727157155142,1.2676,146.42,146.32,10.8273]
[1727157155345,9.46,146.39,146.34,9.46]
[1727157155543,9.46,146.39,146.35,9.46]
[1727157155842,9.46,146.39,146.36,3.4162]
[1727157160556,12.8757,146.39,146.36,3.4162]
[1727157160955,9.46,146.39,146.35,3.4165]
[1727157161361,9.46,146.38,146.35,3.4165]
[1727157162061,9.46,146.37,146.32,1.3673]
[1727157162266,9.46,146.36,146.32,1.3673]
[1727157162766,9.46,146.36,146.34,3.4167]
[1727157162964,9.46,146.36,146.32,1.3673]
[1727157162965,9.46,146.37,146.33,9.46]
[1727157163657,9.46,146.37,146.35,3.4165]
[1727157166567,3.4158,146.39,146.35,3.4165]
[1727157166766,9.46,146.38,146.35,3.4165]
[1727157167566,9.46,146.37,146.35,3.4165]
[1727157172871,9.46,146.37,146.36,3.4164]
[1727157173576,9.46,146.37,146.35,3.4165]
[1727157175172,9.46,146.38,146.36,3.4164]
[1727157176173,9.46,146.38,146.32,10.8273]
[1727157176174,9.46,146.38,146.35,3.4165]
[1727157176377,3.4157,146.39,146.35,3.4165]
[1727157176572,9.46,146.38,146.35,3.4165]
[1727157178372,12.8755,146.4,146.36,3.4163]
[1727157178573,12.8755,146.4,146.35,9.46]
[1727157178769,1.3854,146.43,146.36,9.46]
[1727157178770,9.46,146.41,146.36,9.46]
[1727157179278,9.46,146.41,146.38,3.4158]
[1727157179676,9.46,146.41,146.36,9.46]
[1727157181478,9.46,146.41,146.38,3.4157]
[1727157182080,9.46,146.41,146.39,3.4156]
[1727157182383,1.4026,146.47,146.39,9.46]
[1727157182586,1.4026,146.47,146.4,9.46]
[1727157182775,9.46,146.45,146.42,3.4147]
[1727157182981,1.4026,146.47,146.4,9.46]
[1727157183182,9.46,146.45,146.4,9.46]
[1727157184879,9.46,146.45,146.42,3.4148]
[1727157187681,12.8743,146.45,146.41,3.4151]
[1727157188683,3.47953815,146.49,146.4,3.4153]
[1727157188684,9.46,146.43,146.4,3.4153]
[1727157189191,9.46,146.41,146.37,4.7479]
[1727157189586,12.8753,146.41,146.37,4.7479]
[1727157191783,12.8753,146.41,146.38,3.4159]
[1727157198891,9.46,146.41,146.38,3.4159]
[1727157200288,9.46,146.41,146.37,10.7919]
[1727157200289,6.84511067,146.45,146.41,3.4152]
[1727157200490,9.46,146.47,146.42,9.46]
[1727157201201,9.46,146.47,146.43,3.4146]
[1727157201599,9.46,146.45,146.4,1.3841]
[1727157201900,9.46,146.45,146.42,3.4148]
[1727157204294,12.8741,146.46,146.42,3.4148]
[1727157204897,9.46,146.48,146.43,12.8746]
[1727157205405,12.8737,146.48,146.44,3.4144]
[1727157205595,12.8737,146.48,146.43,9.46]
[1727157206204,12.8737,146.48,146.44,3.4143]
[1727157207607,12.8737,146.48,146.45,3.4142]
[1727157209801,84.76358577,146.51,146.46,3.414]
[1727157209802,12.8735,146.49,146.46,3.414]
[1727157211098,9.46,146.48,146.42,9.46]
[1727157211300,9.46,146.47,146.42,9.46]
[1727157211701,12.8738,146.47,146.44,3.4144]
[1727157216213,80.04998182,146.51,146.42,9.46]
[1727157216409,9.46,146.48,146.42,9.46]
[1727157217515,3.4138,146.47,146.44,3.4144]
[1727157224420,3.4138,146.47,146.43,9.46]
[1727157224919,3.4138,146.47,146.44,3.4144]
[1727157226415,12.8737,146.48,146.44,3.4144]
[1727157226818,12.8737,146.48,146.44,12.8744]
[1727157227921,9.46,146.48,146.4,2.7866]
[1727157228218,9.46,146.47,146.41,9.46]
[1727157228422,80.04998182,146.51,146.43,3.4146]
[1727157228612,9.46,146.48,146.43,9.46]
[1727157228815,1.3517,146.52,146.45,9.46]
[1727157229111,9.46,146.5,146.46,3.4139]
[1727157229313,9.46,146.49,146.45,9.46]
[1727157229516,9.46,146.49,146.44,9.46]
[1727157229713,9.46,146.48,146.44,9.46]
[1727157230824,9.46,146.48,146.43,9.46]
[1727157231822,12.8736,146.48,146.44,3.4145]
[1727157232223,3.414,146.46,146.42,12.8748]
[1727157234323,12.8738,146.47,146.43,3.4147]
[1727157234517,3.4138,146.47,146.43,3.4147]
[1727157234723,3.4138,146.47,146.43,12.8747]
[1727157241226,3.4136,146.48,146.44,12.8744]
[1727157245127,4.84169248,146.52,146.44,9.46]
[1727157245325,9.46,146.5,146.45,9.46]
[1727157245725,9.46,146.5,146.4,2.7866]
[1727157245924,3.4135,146.49,146.45,9.46]
[1727157246120,14.09146772,146.55,146.46,9.46]
[1727157246321,9.46,146.53,146.47,9.46]
[1727157246731,9.46,146.51,146.47,3.4137]
[1727157246930,9.46,146.51,146.47,12.8737]
[1727157247323,12.873,146.51,146.47,12.8737]
[1727157248129,9.46,146.51,146.45,10.7792]
[1727157248724,3.41118585,146.52,146.45,14.1933]